Workbook

Sheet ВПИ ДОЦ
A1: Наименование набора | B1: Модуль | C1: Габарит | D1: Глубина сиденья(под змейку) | E1: Глубина сиденья(под ремень) | F1: Гайка - ус М6х9 | G1: Гайка - ус М8х11 | H1: Гайка - ус М8х17 | I1: Футорка М6х10х14мм. Цинк | J1: Саморез 4х30 | K1: Саморез 4х40 | L1: Саморез 4х50 | M1: Саморез 4х60 | N1: Саморез 4х70 | O1: Вентиляционная заглушка | P1: ='Ремень эластичный'!$A$2 -> Ремень эластичный 300мм | Q1: ='Ремень эластичный'!$A$3 -> Ремень эластичный 550мм | R1: ='Ремень эластичный'!$A$4 -> Ремень эластичный 560мм | S1: ='Ремень эластичный'!$A$5 -> Ремень эластичный 590мм | T1: ='Ремень эластичный'!$A$6 -> Ремень эластичный 640мм | U1: ='Ремень эластичный'!$A$7 -> Ремень эластичный 650мм | V1: ='Ремень эластичный'!$A$8 -> Ремень эластичный 660мм | W1: ='Ремень эластичный'!$A$9 -> Ремень эластичный 670мм | X1: ='Ремень эластичный'!$A$10 -> Ремень эластичный 700мм | Y1: ='Ремень эластичный'!$A$11 -> Ремень эластичный 740мм | Z1: ='Ремень эластичный'!$A$12 -> Ремень эластичный 750мм | AA1: ='Ремень эластичный'!$A$13 -> Ремень эластичный 780мм | AB1: ='Ремень эластичный'!$A$14 -> Ремень эластичный 830мм | AC1: ='Ремень эластичный'!$A$15 -> Ремень эластичный 840мм | AD1: ='Ремень эластичный'!$A$16 -> Ремень эластичный 840мм | AE1: ='Ремень эластичный'!$A$17 -> Ремень эластичный 850мм | AF1: ='Ремень эластичный'!$A$18 -> Ремень эластичный 920мм | AG1: ='Ремень эластичный'!$A$19 -> Ремень эластичный 930мм | AH1: ='Ремень эластичный'!$A$20 -> Ремень эластичный 1000мм | AI1: ='Ремень эластичный'!$A$21 -> Ремень эластичный 1080мм | AJ1: ='Ремень эластичный'!$A$22 -> Ремень эластичный 1130мм | AK1: ='Ремень эластичный'!$A$23 -> Ремень эластичный 1160мм | AL1: ='Ремень эластичный'!$A$24 -> Ремень эластичный 1190мм | AM1: ='Ремень эластичный'!$A$25 -> Ремень эластичный 1210мм | AN1: ='Ремень эластичный'!$A$26 -> Ремень эластичный 1240мм | AO1: ='Ремень эластичный'!$A$27 -> Ремень эластичный 1270мм | AP1: ='Ремень эластичный'!$A$28 -> Ремень эластичный 1310мм | AQ1: ='Ремень эластичный'!$A$30 -> Ремень эластичный 1370мм | AR1: ='Ремень эластичный'!$A$29 -> Ремень эластичный 1340мм | AS1: ='Ремень эластичный'!$A$31 -> Ремень эластичный 1390мм | AT1: ='Ремень эластичный'!$A$33 -> Ремень эластичный 1470мм | AU1: ='Ремень эластичный'!$A$34 -> Ремень эластичный 1520мм | AV1: ='Ремень эластичный'!$A$35 -> Ремень эластичный 1540мм | AW1: Клипса для пружины-змейки | AX1: ='Пружина змейка+зацеп'!A3 -> Пружина - змейка 460мм | AY1: ='Пружина змейка+зацеп'!A4 -> Пружина - змейка 520мм | AZ1: ='Пружина змейка+зацеп'!A5 -> Пружина - змейка 580мм | BA1: ='Пружина змейка+зацеп'!A6 -> Пружина - змейка 660мм | BB1: Полипропилен 1000 | BC1: Полипропилен 1600 | BD1: Полипропилен 1800 | BE1: Полипропилен 2000
A2: Аруба | B2: 1у(800) | C2: 785 | E2: 360 | P2: =IF(AND(AW2="---",C2=360,C2=E2),'Ремень эластичный'!$I$2*2,IF(AND(AW2="---",C2=360),'Ремень эластичный'!$I$2,IF(AND(AW2="---",E2=360),'Ремень эластичный'!$I$2,"---"))) -> 4 | Q2: =IF(AND(AW2="---",C2=660,C2=E2),'Ремень эластичный'!$I$3*2,IF(AND(AW2="---",C2=660),'Ремень эластичный'!$I$3,IF(AND(AW2="---",E2=660),'Ремень эластичный'!$I$3,"---"))) -> --- | R2: =IF(AND(AW2="---",C2=670,C2=E2),'Ремень эластичный'!$I$4*2,IF(AND(AW2="---",C2=670),'Ремень эластичный'!$I$4,IF(AND(AW2="---",E2=670),'Ремень эластичный'!$I$4,"---"))) -> --- | S2: =IF(AND(AW2="---",C2=700,C2=E2),'Ремень эластичный'!$I$5*2,IF(AND(AW2="---",C2=700),'Ремень эластичный'!$I$5,IF(AND(AW2="---",E2=700),'Ремень эластичный'!$I$5,"---"))) -> --- | T2: =IF(AND(AW2="---",C2=760,C2=E2),'Ремень эластичный'!$I$6*2,IF(AND(AW2="---",C2=760),'Ремень эластичный'!$I$6,IF(AND(AW2="---",E2=760),'Ремень эластичный'!$I$6,"---"))) -> --- | U2: =IF(AND(AW2="---",C2=770,C2=E2),'Ремень эластичный'!$I$7*2,IF(AND(AW2="---",C2=770),'Ремень эластичный'!$I$7,IF(AND(AW2="---",E2=770),'Ремень эластичный'!$I$7,"---"))) -> --- | V2: =IF(AND(AW2="---",C2=785,C2=E2),'Ремень эластичный'!$I$8*2,IF(AND(AW2="---",C2=785),'Ремень эластичный'!$I$8,IF(AND(AW2="---",E2=785),'Ремень эластичный'!$I$8,"---"))) -> 7 | W2: =IF(AND(AW2="---",C2=800,C2=E2),'Ремень эластичный'!$I$9*2,IF(AND(AW2="---",C2=800),'Ремень эластичный'!$I$9,IF(AND(AW2="---",E2=800),'Ремень эластичный'!$I$9,"---"))) -> --- | X2: =IF(AND(AW2="---",C2=830,C2=E2),'Ремень эластичный'!$I$10*2,IF(AND(AW2="---",C2=830),'Ремень эластичный'!$I$10,IF(AND(AW2="---",E2=830),'Ремень эластичный'!$I$10,"---"))) -> --- | Y2: =IF(AND(AW2="---",C2=885,C2=E2),'Ремень эластичный'!$I$11*2,IF(AND(AW2="---",C2=885),'Ремень эластичный'!$I$11,IF(AND(AW2="---",E2=885),'Ремень эластичный'!$I$11,"---"))) -> --- | Z2: =IF(AND(AW2="---",C2=900,C2=E2),'Ремень эластичный'!$I$12*2,IF(AND(AW2="---",C2=900),'Ремень эластичный'!$I$12,IF(AND(AW2="---",E2=900),'Ремень эластичный'!$I$12,"---"))) -> --- | AA2: =IF(AND(AW2="---",C2=935,C2=E2),'Ремень эластичный'!$I$13*2,IF(AND(AW2="---",C2=935),'Ремень эластичный'!$I$13,IF(AND(AW2="---",E2=935),'Ремень эластичный'!$I$13,"---"))) -> --- | AB2: =IF(AND(AW2="---",C2=985,C2=E2),'Ремень эластичный'!$I$14*2,IF(AND(AW2="---",C2=985),'Ремень эластичный'!$I$14,IF(AND(AW2="---",E2=985),'Ремень эластичный'!$I$14,"---"))) -> --- | AC2: =IF(AND(AW2="---",C2=1000,C2=E2),'Ремень эластичный'!$I$15*2,IF(AND(AW2="---",C2=1000),'Ремень эластичный'!$I$15,IF(AND(AW2="---",E2=1000),'Ремень эластичный'!$I$15,"---"))) -> --- | AD2: =IF(AND(AW2="---",C2=1080,C2=E2),'Ремень эластичный'!$I$16*2,IF(AND(AW2="---",C2=1080),'Ремень эластичный'!$I$16,IF(AND(AW2="---",E2=1080),'Ремень эластичный'!$I$16,"---"))) -> --- | AE2: =IF(AND(AW2="---",C2=1100,C2=E2),'Ремень эластичный'!$I$17*2,IF(AND(AW2="---",C2=1100),'Ремень эластичный'!$I$17,IF(AND(AW2="---",E2=1100),'Ремень эластичный'!$I$17,"---"))) -> --- | AF2: =IF(AND(AW2="---",C2=1185,C2=E2),'Ремень эластичный'!$I$18*2,IF(AND(AW2="---",C2=1185),'Ремень эластичный'!$I$18,IF(AND(AW2="---",E2=1185),'Ремень эластичный'!$I$18,"---"))) -> --- | AG2: =IF(AND(AW2="---",C2=1200,C2=E2),'Ремень эластичный'!$I$19*2,IF(AND(AW2="---",C2=1200),'Ремень эластичный'!$I$19,IF(AND(AW2="---",E2=1200),'Ремень эластичный'!$I$19,"---"))) -> --- | AH2: =IF(AND(AW2="---",C2=1300,C2=E2),'Ремень эластичный'!$I$20*2,IF(AND(AW2="---",C2=1300),'Ремень эластичный'!$I$20,IF(AND(AW2="---",E2=1300),'Ремень эластичный'!$I$20,"---"))) -> --- | AI2: =IF(AND(AW2="---",C2=1400,C2=E2),'Ремень эластичный'!$I$21*2,IF(AND(AW2="---",C2=1400),'Ремень эластичный'!$I$21,IF(AND(AW2="---",E2=1400),'Ремень эластичный'!$I$21,"---"))) -> --- | AJ2: =IF(AND(AW2="---",C2=1460,C2=E2),'Ремень эластичный'!$I$22*2,IF(AND(AW2="---",C2=1460),'Ремень эластичный'!$I$22,IF(AND(AW2="---",E2=1460),'Ремень эластичный'!$I$22,"---"))) -> --- | AK2: =IF(AND(AW2="---",C2=1500,C2=E2),'Ремень эластичный'!$I$23*2,IF(AND(AW2="---",C2=1500),'Ремень эластичный'!$I$23,IF(AND(AW2="---",E2=1500),'Ремень эластичный'!$I$23,"---"))) -> --- | AL2: =IF(AND(AW2="---",C2=1540,C2=E2),'Ремень эластичный'!$I$24*2,IF(AND(AW2="---",C2=1540),'Ремень эластичный'!$I$24,IF(AND(AW2="---",E2=1540),'Ремень эластичный'!$I$24,"---"))) -> --- | AM2: =IF(AND(AW2="---",C2=1570,C2=E2),'Ремень эластичный'!$I$25*2,IF(AND(AW2="---",C2=1570),'Ремень эластичный'!$I$25,IF(AND(AW2="---",E2=1570),'Ремень эластичный'!$I$25,"---"))) -> --- | AN2: =IF(AND(AW2="---",C2=1600,C2=E2),'Ремень эластичный'!$I$26*2,IF(AND(AW2="---",C2=1600),'Ремень эластичный'!$I$26,IF(AND(AW2="---",E2=1600),'Ремень эластичный'!$I$26,"---"))) -> --- | AO2: =IF(AND(AW2="---",C2=1640,C2=E2),'Ремень эластичный'!$I$27*2,IF(AND(AW2="---",C2=1640),'Ремень эластичный'!$I$27,IF(AND(AW2="---",E2=1640),'Ремень эластичный'!$I$27,"---"))) -> --- | AP2: =IF(AND(AW2="---",C2=1700,C2=E2),'Ремень эластичный'!$I$28*2,IF(AND(AW2="---",C2=1700),'Ремень эластичный'!$I$28,IF(AND(AW2="---",E2=1700),'Ремень эластичный'!$I$28,"---"))) -> --- | AQ2: =IF(AND(AW2="---",C2=1740,C2=E2),'Ремень эластичный'!$I$29*2,IF(AND(AW2="---",C2=1740),'Ремень эластичный'!$I$29,IF(AND(AW2="---",E2=1740),'Ремень эластичный'!$I$29,"---"))) -> --- | AR2: =IF(AND(AW2="---",C2=1770,C2=E2),'Ремень эластичный'!$I$30*2,IF(AND(AW2="---",C2=1770),'Ремень эластичный'!$I$30,IF(AND(AW2="---",E2=1770),'Ремень эластичный'!$I$30,"---"))) -> --- | AS2: =IF(AND(AW2="---",C2=1800,C2=E2),'Ремень эластичный'!$I$31*2,IF(AND(AW2="---",C2=1800),'Ремень эластичный'!$I$31,IF(AND(AW2="---",E2=1800),'Ремень эластичный'!$I$31,"---"))) -> --- | AT2: =IF(AND(AW2="---",C2=1900,C2=E2),'Ремень эластичный'!$I$33*2,IF(AND(AW2="---",C2=1900),'Ремень эластичный'!$I$33,IF(AND(AW2="---",E2=1900),'Ремень эластичный'!$I$33,"---"))) -> --- | AU2: =IF(AND(AW2="---",C2=1970,C2=E2),'Ремень эластичный'!$I$34*2,IF(AND(AW2="---",C2=1970),'Ремень эластичный'!$I$34,IF(AND(AW2="---",E2=1970),'Ремень эластичный'!$I$34,"---"))) -> --- | AV2: =IF(AND(AW2="---",C2=2000,C2=E2),'Ремень эластичный'!$I$35*2,IF(AND(AW2="---",C2=2000),'Ремень эластичный'!$I$35,IF(AND(AW2="---",E2=2000),'Ремень эластичный'!$I$35,"---"))) -> --- | AW2: =IF((SUM(AX2:BA2)*2)>0,SUM(AX2:BA2)*2,"---") -> --- | AX2: =IF(D2=460,'Пружина змейка+зацеп'!D8,"---") -> --- | AY2: =IF(D2=520,'Пружина змейка+зацеп'!D8,"---") -> --- | AZ2: =IF(D2=580,'Пружина змейка+зацеп'!D8,"---") -> --- | BA2: =IF(D2=660,'Пружина змейка+зацеп'!D8,"---") -> ---
A3: Аруба | B3: 1у(900) | C3: 885 | D3: 660 | P3: =IF(AND(AW3="---",C3=360,C3=E3),'Ремень эластичный'!$I$2*2,IF(AND(AW3="---",C3=360),'Ремень эластичный'!$I$2,IF(AND(AW3="---",E3=360),'Ремень эластичный'!$I$2,"---"))) -> --- | Q3: =IF(AND(AW3="---",C3=660,C3=E3),'Ремень эластичный'!$I$3*2,IF(AND(AW3="---",C3=660),'Ремень эластичный'!$I$3,IF(AND(AW3="---",E3=660),'Ремень эластичный'!$I$3,"---"))) -> --- | R3: =IF(AND(AW3="---",C3=670,C3=E3),'Ремень эластичный'!$I$4*2,IF(AND(AW3="---",C3=670),'Ремень эластичный'!$I$4,IF(AND(AW3="---",E3=670),'Ремень эластичный'!$I$4,"---"))) -> --- | S3: =IF(AND(AW3="---",C3=700,C3=E3),'Ремень эластичный'!$I$5*2,IF(AND(AW3="---",C3=700),'Ремень эластичный'!$I$5,IF(AND(AW3="---",E3=700),'Ремень эластичный'!$I$5,"---"))) -> --- | T3: =IF(AND(AW3="---",C3=760,C3=E3),'Ремень эластичный'!$I$6*2,IF(AND(AW3="---",C3=760),'Ремень эластичный'!$I$6,IF(AND(AW3="---",E3=760),'Ремень эластичный'!$I$6,"---"))) -> --- | U3: =IF(AND(AW3="---",C3=770,C3=E3),'Ремень эластичный'!$I$7*2,IF(AND(AW3="---",C3=770),'Ремень эластичный'!$I$7,IF(AND(AW3="---",E3=770),'Ремень эластичный'!$I$7,"---"))) -> --- | V3: =IF(AND(AW3="---",C3=785,C3=E3),'Ремень эластичный'!$I$8*2,IF(AND(AW3="---",C3=785),'Ремень эластичный'!$I$8,IF(AND(AW3="---",E3=785),'Ремень эластичный'!$I$8,"---"))) -> --- | W3: =IF(AND(AW3="---",C3=800,C3=E3),'Ремень эластичный'!$I$9*2,IF(AND(AW3="---",C3=800),'Ремень эластичный'!$I$9,IF(AND(AW3="---",E3=800),'Ремень эластичный'!$I$9,"---"))) -> --- | X3: =IF(AND(AW3="---",C3=830,C3=E3),'Ремень эластичный'!$I$10*2,IF(AND(AW3="---",C3=830),'Ремень эластичный'!$I$10,IF(AND(AW3="---",E3=830),'Ремень эластичный'!$I$10,"---"))) -> --- | Y3: =IF(AND(AW3="---",C3=885,C3=E3),'Ремень эластичный'!$I$11*2,IF(AND(AW3="---",C3=885),'Ремень эластичный'!$I$11,IF(AND(AW3="---",E3=885),'Ремень эластичный'!$I$11,"---"))) -> --- | Z3: =IF(AND(AW3="---",C3=900,C3=E3),'Ремень эластичный'!$I$12*2,IF(AND(AW3="---",C3=900),'Ремень эластичный'!$I$12,IF(AND(AW3="---",E3=900),'Ремень эластичный'!$I$12,"---"))) -> --- | AA3: =IF(AND(AW3="---",C3=935,C3=E3),'Ремень эластичный'!$I$13*2,IF(AND(AW3="---",C3=935),'Ремень эластичный'!$I$13,IF(AND(AW3="---",E3=935),'Ремень эластичный'!$I$13,"---"))) -> --- | AB3: =IF(AND(AW3="---",C3=985,C3=E3),'Ремень эластичный'!$I$14*2,IF(AND(AW3="---",C3=985),'Ремень эластичный'!$I$14,IF(AND(AW3="---",E3=985),'Ремень эластичный'!$I$14,"---"))) -> --- | AC3: =IF(AND(AW3="---",C3=1000,C3=E3),'Ремень эластичный'!$I$15*2,IF(AND(AW3="---",C3=1000),'Ремень эластичный'!$I$15,IF(AND(AW3="---",E3=1000),'Ремень эластичный'!$I$15,"---"))) -> --- | AD3: =IF(AND(AW3="---",C3=1080,C3=E3),'Ремень эластичный'!$I$16*2,IF(AND(AW3="---",C3=1080),'Ремень эластичный'!$I$16,IF(AND(AW3="---",E3=1080),'Ремень эластичный'!$I$16,"---"))) -> --- | AE3: =IF(AND(AW3="---",C3=1100,C3=E3),'Ремень эластичный'!$I$17*2,IF(AND(AW3="---",C3=1100),'Ремень эластичный'!$I$17,IF(AND(AW3="---",E3=1100),'Ремень эластичный'!$I$17,"---"))) -> --- | AF3: =IF(AND(AW3="---",C3=1185,C3=E3),'Ремень эластичный'!$I$18*2,IF(AND(AW3="---",C3=1185),'Ремень эластичный'!$I$18,IF(AND(AW3="---",E3=1185),'Ремень эластичный'!$I$18,"---"))) -> --- | AG3: =IF(AND(AW3="---",C3=1200,C3=E3),'Ремень эластичный'!$I$19*2,IF(AND(AW3="---",C3=1200),'Ремень эластичный'!$I$19,IF(AND(AW3="---",E3=1200),'Ремень эластичный'!$I$19,"---"))) -> --- | AH3: =IF(AND(AW3="---",C3=1300,C3=E3),'Ремень эластичный'!$I$20*2,IF(AND(AW3="---",C3=1300),'Ремень эластичный'!$I$20,IF(AND(AW3="---",E3=1300),'Ремень эластичный'!$I$20,"---"))) -> --- | AI3: =IF(AND(AW3="---",C3=1400,C3=E3),'Ремень эластичный'!$I$21*2,IF(AND(AW3="---",C3=1400),'Ремень эластичный'!$I$21,IF(AND(AW3="---",E3=1400),'Ремень эластичный'!$I$21,"---"))) -> --- | AJ3: =IF(AND(AW3="---",C3=1460,C3=E3),'Ремень эластичный'!$I$22*2,IF(AND(AW3="---",C3=1460),'Ремень эластичный'!$I$22,IF(AND(AW3="---",E3=1460),'Ремень эластичный'!$I$22,"---"))) -> --- | AK3: =IF(AND(AW3="---",C3=1500,C3=E3),'Ремень эластичный'!$I$23*2,IF(AND(AW3="---",C3=1500),'Ремень эластичный'!$I$23,IF(AND(AW3="---",E3=1500),'Ремень эластичный'!$I$23,"---"))) -> --- | AL3: =IF(AND(AW3="---",C3=1540,C3=E3),'Ремень эластичный'!$I$24*2,IF(AND(AW3="---",C3=1540),'Ремень эластичный'!$I$24,IF(AND(AW3="---",E3=1540),'Ремень эластичный'!$I$24,"---"))) -> --- | AM3: =IF(AND(AW3="---",C3=1570,C3=E3),'Ремень эластичный'!$I$25*2,IF(AND(AW3="---",C3=1570),'Ремень эластичный'!$I$25,IF(AND(AW3="---",E3=1570),'Ремень эластичный'!$I$25,"---"))) -> --- | AN3: =IF(AND(AW3="---",C3=1600,C3=E3),'Ремень эластичный'!$I$26*2,IF(AND(AW3="---",C3=1600),'Ремень эластичный'!$I$26,IF(AND(AW3="---",E3=1600),'Ремень эластичный'!$I$26,"---"))) -> --- | AO3: =IF(AND(AW3="---",C3=1640,C3=E3),'Ремень эластичный'!$I$27*2,IF(AND(AW3="---",C3=1640),'Ремень эластичный'!$I$27,IF(AND(AW3="---",E3=1640),'Ремень эластичный'!$I$27,"---"))) -> --- | AP3: =IF(AND(AW3="---",C3=1700,C3=E3),'Ремень эластичный'!$I$28*2,IF(AND(AW3="---",C3=1700),'Ремень эластичный'!$I$28,IF(AND(AW3="---",E3=1700),'Ремень эластичный'!$I$28,"---"))) -> --- | AQ3: =IF(AND(AW3="---",C3=1740,C3=E3),'Ремень эластичный'!$I$29*2,IF(AND(AW3="---",C3=1740),'Ремень эластичный'!$I$29,IF(AND(AW3="---",E3=1740),'Ремень эластичный'!$I$29,"---"))) -> --- | AR3: =IF(AND(AW3="---",C3=1770,C3=E3),'Ремень эластичный'!$I$30*2,IF(AND(AW3="---",C3=1770),'Ремень эластичный'!$I$30,IF(AND(AW3="---",E3=1770),'Ремень эластичный'!$I$30,"---"))) -> --- | AS3: =IF(AND(AW3="---",C3=1800,C3=E3),'Ремень эластичный'!$I$31*2,IF(AND(AW3="---",C3=1800),'Ремень эластичный'!$I$31,IF(AND(AW3="---",E3=1800),'Ремень эластичный'!$I$31,"---"))) -> --- | AT3: =IF(AND(AW3="---",C3=1900,C3=E3),'Ремень эластичный'!$I$33*2,IF(AND(AW3="---",C3=1900),'Ремень эластичный'!$I$33,IF(AND(AW3="---",E3=1900),'Ремень эластичный'!$I$33,"---"))) -> --- | AU3: =IF(AND(AW3="---",C3=1970,C3=E3),'Ремень эластичный'!$I$34*2,IF(AND(AW3="---",C3=1970),'Ремень эластичный'!$I$34,IF(AND(AW3="---",E3=1970),'Ремень эластичный'!$I$34,"---"))) -> --- | AV3: =IF(AND(AW3="---",C3=2000,C3=E3),'Ремень эластичный'!$I$35*2,IF(AND(AW3="---",C3=2000),'Ремень эластичный'!$I$35,IF(AND(AW3="---",E3=2000),'Ремень эластичный'!$I$35,"---"))) -> --- | AW3: 16 | AX3: =IF(D3=460,'Пружина змейка+зацеп'!D9,"---") -> --- | AY3: =IF(D3=520,'Пружина змейка+зацеп'!D9,"---") -> --- | AZ3: =IF(D3=580,'Пружина змейка+зацеп'!D9,"---") -> --- | BA3: =IF(D3=660,'Пружина змейка+зацеп'!D9,"---") -> 8
A4: Аруба | B4: 1у(1000) | C4: 985 | D4: 660 | P4: =IF(AND(AW4="---",C4=360,C4=E4),'Ремень эластичный'!$I$2*2,IF(AND(AW4="---",C4=360),'Ремень эластичный'!$I$2,IF(AND(AW4="---",E4=360),'Ремень эластичный'!$I$2,"---"))) -> --- | Q4: =IF(AND(AW4="---",C4=660,C4=E4),'Ремень эластичный'!$I$3*2,IF(AND(AW4="---",C4=660),'Ремень эластичный'!$I$3,IF(AND(AW4="---",E4=660),'Ремень эластичный'!$I$3,"---"))) -> --- | R4: =IF(AND(AW4="---",C4=670,C4=E4),'Ремень эластичный'!$I$4*2,IF(AND(AW4="---",C4=670),'Ремень эластичный'!$I$4,IF(AND(AW4="---",E4=670),'Ремень эластичный'!$I$4,"---"))) -> --- | S4: =IF(AND(AW4="---",C4=700,C4=E4),'Ремень эластичный'!$I$5*2,IF(AND(AW4="---",C4=700),'Ремень эластичный'!$I$5,IF(AND(AW4="---",E4=700),'Ремень эластичный'!$I$5,"---"))) -> --- | T4: =IF(AND(AW4="---",C4=760,C4=E4),'Ремень эластичный'!$I$6*2,IF(AND(AW4="---",C4=760),'Ремень эластичный'!$I$6,IF(AND(AW4="---",E4=760),'Ремень эластичный'!$I$6,"---"))) -> --- | U4: =IF(AND(AW4="---",C4=770,C4=E4),'Ремень эластичный'!$I$7*2,IF(AND(AW4="---",C4=770),'Ремень эластичный'!$I$7,IF(AND(AW4="---",E4=770),'Ремень эластичный'!$I$7,"---"))) -> --- | V4: =IF(AND(AW4="---",C4=785,C4=E4),'Ремень эластичный'!$I$8*2,IF(AND(AW4="---",C4=785),'Ремень эластичный'!$I$8,IF(AND(AW4="---",E4=785),'Ремень эластичный'!$I$8,"---"))) -> --- | W4: =IF(AND(AW4="---",C4=800,C4=E4),'Ремень эластичный'!$I$9*2,IF(AND(AW4="---",C4=800),'Ремень эластичный'!$I$9,IF(AND(AW4="---",E4=800),'Ремень эластичный'!$I$9,"---"))) -> --- | X4: =IF(AND(AW4="---",C4=830,C4=E4),'Ремень эластичный'!$I$10*2,IF(AND(AW4="---",C4=830),'Ремень эластичный'!$I$10,IF(AND(AW4="---",E4=830),'Ремень эластичный'!$I$10,"---"))) -> --- | Y4: =IF(AND(AW4="---",C4=885,C4=E4),'Ремень эластичный'!$I$11*2,IF(AND(AW4="---",C4=885),'Ремень эластичный'!$I$11,IF(AND(AW4="---",E4=885),'Ремень эластичный'!$I$11,"---"))) -> --- | Z4: =IF(AND(AW4="---",C4=900,C4=E4),'Ремень эластичный'!$I$12*2,IF(AND(AW4="---",C4=900),'Ремень эластичный'!$I$12,IF(AND(AW4="---",E4=900),'Ремень эластичный'!$I$12,"---"))) -> --- | AA4: =IF(AND(AW4="---",C4=935,C4=E4),'Ремень эластичный'!$I$13*2,IF(AND(AW4="---",C4=935),'Ремень эластичный'!$I$13,IF(AND(AW4="---",E4=935),'Ремень эластичный'!$I$13,"---"))) -> --- | AB4: =IF(AND(AW4="---",C4=985,C4=E4),'Ремень эластичный'!$I$14*2,IF(AND(AW4="---",C4=985),'Ремень эластичный'!$I$14,IF(AND(AW4="---",E4=985),'Ремень эластичный'!$I$14,"---"))) -> --- | AC4: =IF(AND(AW4="---",C4=1000,C4=E4),'Ремень эластичный'!$I$15*2,IF(AND(AW4="---",C4=1000),'Ремень эластичный'!$I$15,IF(AND(AW4="---",E4=1000),'Ремень эластичный'!$I$15,"---"))) -> --- | AD4: =IF(AND(AW4="---",C4=1080,C4=E4),'Ремень эластичный'!$I$16*2,IF(AND(AW4="---",C4=1080),'Ремень эластичный'!$I$16,IF(AND(AW4="---",E4=1080),'Ремень эластичный'!$I$16,"---"))) -> --- | AE4: =IF(AND(AW4="---",C4=1100,C4=E4),'Ремень эластичный'!$I$17*2,IF(AND(AW4="---",C4=1100),'Ремень эластичный'!$I$17,IF(AND(AW4="---",E4=1100),'Ремень эластичный'!$I$17,"---"))) -> --- | AF4: =IF(AND(AW4="---",C4=1185,C4=E4),'Ремень эластичный'!$I$18*2,IF(AND(AW4="---",C4=1185),'Ремень эластичный'!$I$18,IF(AND(AW4="---",E4=1185),'Ремень эластичный'!$I$18,"---"))) -> --- | AG4: =IF(AND(AW4="---",C4=1200,C4=E4),'Ремень эластичный'!$I$19*2,IF(AND(AW4="---",C4=1200),'Ремень эластичный'!$I$19,IF(AND(AW4="---",E4=1200),'Ремень эластичный'!$I$19,"---"))) -> --- | AH4: =IF(AND(AW4="---",C4=1300,C4=E4),'Ремень эластичный'!$I$20*2,IF(AND(AW4="---",C4=1300),'Ремень эластичный'!$I$20,IF(AND(AW4="---",E4=1300),'Ремень эластичный'!$I$20,"---"))) -> --- | AI4: =IF(AND(AW4="---",C4=1400,C4=E4),'Ремень эластичный'!$I$21*2,IF(AND(AW4="---",C4=1400),'Ремень эластичный'!$I$21,IF(AND(AW4="---",E4=1400),'Ремень эластичный'!$I$21,"---"))) -> --- | AJ4: =IF(AND(AW4="---",C4=1460,C4=E4),'Ремень эластичный'!$I$22*2,IF(AND(AW4="---",C4=1460),'Ремень эластичный'!$I$22,IF(AND(AW4="---",E4=1460),'Ремень эластичный'!$I$22,"---"))) -> --- | AK4: =IF(AND(AW4="---",C4=1500,C4=E4),'Ремень эластичный'!$I$23*2,IF(AND(AW4="---",C4=1500),'Ремень эластичный'!$I$23,IF(AND(AW4="---",E4=1500),'Ремень эластичный'!$I$23,"---"))) -> --- | AL4: =IF(AND(AW4="---",C4=1540,C4=E4),'Ремень эластичный'!$I$24*2,IF(AND(AW4="---",C4=1540),'Ремень эластичный'!$I$24,IF(AND(AW4="---",E4=1540),'Ремень эластичный'!$I$24,"---"))) -> --- | AM4: =IF(AND(AW4="---",C4=1570,C4=E4),'Ремень эластичный'!$I$25*2,IF(AND(AW4="---",C4=1570),'Ремень эластичный'!$I$25,IF(AND(AW4="---",E4=1570),'Ремень эластичный'!$I$25,"---"))) -> --- | AN4: =IF(AND(AW4="---",C4=1600,C4=E4),'Ремень эластичный'!$I$26*2,IF(AND(AW4="---",C4=1600),'Ремень эластичный'!$I$26,IF(AND(AW4="---",E4=1600),'Ремень эластичный'!$I$26,"---"))) -> --- | AO4: =IF(AND(AW4="---",C4=1640,C4=E4),'Ремень эластичный'!$I$27*2,IF(AND(AW4="---",C4=1640),'Ремень эластичный'!$I$27,IF(AND(AW4="---",E4=1640),'Ремень эластичный'!$I$27,"---"))) -> --- | AP4: =IF(AND(AW4="---",C4=1700,C4=E4),'Ремень эластичный'!$I$28*2,IF(AND(AW4="---",C4=1700),'Ремень эластичный'!$I$28,IF(AND(AW4="---",E4=1700),'Ремень эластичный'!$I$28,"---"))) -> --- | AQ4: =IF(AND(AW4="---",C4=1740,C4=E4),'Ремень эластичный'!$I$29*2,IF(AND(AW4="---",C4=1740),'Ремень эластичный'!$I$29,IF(AND(AW4="---",E4=1740),'Ремень эластичный'!$I$29,"---"))) -> --- | AR4: =IF(AND(AW4="---",C4=1770,C4=E4),'Ремень эластичный'!$I$30*2,IF(AND(AW4="---",C4=1770),'Ремень эластичный'!$I$30,IF(AND(AW4="---",E4=1770),'Ремень эластичный'!$I$30,"---"))) -> --- | AS4: =IF(AND(AW4="---",C4=1800,C4=E4),'Ремень эластичный'!$I$31*2,IF(AND(AW4="---",C4=1800),'Ремень эластичный'!$I$31,IF(AND(AW4="---",E4=1800),'Ремень эластичный'!$I$31,"---"))) -> --- | AT4: =IF(AND(AW4="---",C4=1900,C4=E4),'Ремень эластичный'!$I$33*2,IF(AND(AW4="---",C4=1900),'Ремень эластичный'!$I$33,IF(AND(AW4="---",E4=1900),'Ремень эластичный'!$I$33,"---"))) -> --- | AU4: =IF(AND(AW4="---",C4=1970,C4=E4),'Ремень эластичный'!$I$34*2,IF(AND(AW4="---",C4=1970),'Ремень эластичный'!$I$34,IF(AND(AW4="---",E4=1970),'Ремень эластичный'!$I$34,"---"))) -> --- | AV4: =IF(AND(AW4="---",C4=2000,C4=E4),'Ремень эластичный'!$I$35*2,IF(AND(AW4="---",C4=2000),'Ремень эластичный'!$I$35,IF(AND(AW4="---",E4=2000),'Ремень эластичный'!$I$35,"---"))) -> --- | AW4: 18 | AX4: =IF(D4=460,'Пружина змейка+зацеп'!D10,"---") -> --- | AY4: =IF(D4=520,'Пружина змейка+зацеп'!D10,"---") -> --- | AZ4: =IF(D4=580,'Пружина змейка+зацеп'!D10,"---") -> --- | BA4: =IF(D4=660,'Пружина змейка+зацеп'!D10,"---") -> 9
A5: Аруба | B5: 1у(1200) | C5: 1185 | D5: 660 | P5: =IF(AND(AW5="---",C5=360,C5=E5),'Ремень эластичный'!$I$2*2,IF(AND(AW5="---",C5=360),'Ремень эластичный'!$I$2,IF(AND(AW5="---",E5=360),'Ремень эластичный'!$I$2,"---"))) -> --- | Q5: =IF(AND(AW5="---",C5=660,C5=E5),'Ремень эластичный'!$I$3*2,IF(AND(AW5="---",C5=660),'Ремень эластичный'!$I$3,IF(AND(AW5="---",E5=660),'Ремень эластичный'!$I$3,"---"))) -> --- | R5: =IF(AND(AW5="---",C5=670,C5=E5),'Ремень эластичный'!$I$4*2,IF(AND(AW5="---",C5=670),'Ремень эластичный'!$I$4,IF(AND(AW5="---",E5=670),'Ремень эластичный'!$I$4,"---"))) -> --- | S5: =IF(AND(AW5="---",C5=700,C5=E5),'Ремень эластичный'!$I$5*2,IF(AND(AW5="---",C5=700),'Ремень эластичный'!$I$5,IF(AND(AW5="---",E5=700),'Ремень эластичный'!$I$5,"---"))) -> --- | T5: =IF(AND(AW5="---",C5=760,C5=E5),'Ремень эластичный'!$I$6*2,IF(AND(AW5="---",C5=760),'Ремень эластичный'!$I$6,IF(AND(AW5="---",E5=760),'Ремень эластичный'!$I$6,"---"))) -> --- | U5: =IF(AND(AW5="---",C5=770,C5=E5),'Ремень эластичный'!$I$7*2,IF(AND(AW5="---",C5=770),'Ремень эластичный'!$I$7,IF(AND(AW5="---",E5=770),'Ремень эластичный'!$I$7,"---"))) -> --- | V5: =IF(AND(AW5="---",C5=785,C5=E5),'Ремень эластичный'!$I$8*2,IF(AND(AW5="---",C5=785),'Ремень эластичный'!$I$8,IF(AND(AW5="---",E5=785),'Ремень эластичный'!$I$8,"---"))) -> --- | W5: =IF(AND(AW5="---",C5=800,C5=E5),'Ремень эластичный'!$I$9*2,IF(AND(AW5="---",C5=800),'Ремень эластичный'!$I$9,IF(AND(AW5="---",E5=800),'Ремень эластичный'!$I$9,"---"))) -> --- | X5: =IF(AND(AW5="---",C5=830,C5=E5),'Ремень эластичный'!$I$10*2,IF(AND(AW5="---",C5=830),'Ремень эластичный'!$I$10,IF(AND(AW5="---",E5=830),'Ремень эластичный'!$I$10,"---"))) -> --- | Y5: =IF(AND(AW5="---",C5=885,C5=E5),'Ремень эластичный'!$I$11*2,IF(AND(AW5="---",C5=885),'Ремень эластичный'!$I$11,IF(AND(AW5="---",E5=885),'Ремень эластичный'!$I$11,"---"))) -> --- | Z5: =IF(AND(AW5="---",C5=900,C5=E5),'Ремень эластичный'!$I$12*2,IF(AND(AW5="---",C5=900),'Ремень эластичный'!$I$12,IF(AND(AW5="---",E5=900),'Ремень эластичный'!$I$12,"---"))) -> --- | AA5: =IF(AND(AW5="---",C5=935,C5=E5),'Ремень эластичный'!$I$13*2,IF(AND(AW5="---",C5=935),'Ремень эластичный'!$I$13,IF(AND(AW5="---",E5=935),'Ремень эластичный'!$I$13,"---"))) -> --- | AB5: =IF(AND(AW5="---",C5=985,C5=E5),'Ремень эластичный'!$I$14*2,IF(AND(AW5="---",C5=985),'Ремень эластичный'!$I$14,IF(AND(AW5="---",E5=985),'Ремень эластичный'!$I$14,"---"))) -> --- | AC5: =IF(AND(AW5="---",C5=1000,C5=E5),'Ремень эластичный'!$I$15*2,IF(AND(AW5="---",C5=1000),'Ремень эластичный'!$I$15,IF(AND(AW5="---",E5=1000),'Ремень эластичный'!$I$15,"---"))) -> --- | AD5: =IF(AND(AW5="---",C5=1080,C5=E5),'Ремень эластичный'!$I$16*2,IF(AND(AW5="---",C5=1080),'Ремень эластичный'!$I$16,IF(AND(AW5="---",E5=1080),'Ремень эластичный'!$I$16,"---"))) -> --- | AE5: =IF(AND(AW5="---",C5=1100,C5=E5),'Ремень эластичный'!$I$17*2,IF(AND(AW5="---",C5=1100),'Ремень эластичный'!$I$17,IF(AND(AW5="---",E5=1100),'Ремень эластичный'!$I$17,"---"))) -> --- | AF5: =IF(AND(AW5="---",C5=1185,C5=E5),'Ремень эластичный'!$I$18*2,IF(AND(AW5="---",C5=1185),'Ремень эластичный'!$I$18,IF(AND(AW5="---",E5=1185),'Ремень эластичный'!$I$18,"---"))) -> --- | AG5: =IF(AND(AW5="---",C5=1200,C5=E5),'Ремень эластичный'!$I$19*2,IF(AND(AW5="---",C5=1200),'Ремень эластичный'!$I$19,IF(AND(AW5="---",E5=1200),'Ремень эластичный'!$I$19,"---"))) -> --- | AH5: =IF(AND(AW5="---",C5=1300,C5=E5),'Ремень эластичный'!$I$20*2,IF(AND(AW5="---",C5=1300),'Ремень эластичный'!$I$20,IF(AND(AW5="---",E5=1300),'Ремень эластичный'!$I$20,"---"))) -> --- | AI5: =IF(AND(AW5="---",C5=1400,C5=E5),'Ремень эластичный'!$I$21*2,IF(AND(AW5="---",C5=1400),'Ремень эластичный'!$I$21,IF(AND(AW5="---",E5=1400),'Ремень эластичный'!$I$21,"---"))) -> --- | AJ5: =IF(AND(AW5="---",C5=1460,C5=E5),'Ремень эластичный'!$I$22*2,IF(AND(AW5="---",C5=1460),'Ремень эластичный'!$I$22,IF(AND(AW5="---",E5=1460),'Ремень эластичный'!$I$22,"---"))) -> --- | AK5: =IF(AND(AW5="---",C5=1500,C5=E5),'Ремень эластичный'!$I$23*2,IF(AND(AW5="---",C5=1500),'Ремень эластичный'!$I$23,IF(AND(AW5="---",E5=1500),'Ремень эластичный'!$I$23,"---"))) -> --- | AL5: =IF(AND(AW5="---",C5=1540,C5=E5),'Ремень эластичный'!$I$24*2,IF(AND(AW5="---",C5=1540),'Ремень эластичный'!$I$24,IF(AND(AW5="---",E5=1540),'Ремень эластичный'!$I$24,"---"))) -> --- | AM5: =IF(AND(AW5="---",C5=1570,C5=E5),'Ремень эластичный'!$I$25*2,IF(AND(AW5="---",C5=1570),'Ремень эластичный'!$I$25,IF(AND(AW5="---",E5=1570),'Ремень эластичный'!$I$25,"---"))) -> --- | AN5: =IF(AND(AW5="---",C5=1600,C5=E5),'Ремень эластичный'!$I$26*2,IF(AND(AW5="---",C5=1600),'Ремень эластичный'!$I$26,IF(AND(AW5="---",E5=1600),'Ремень эластичный'!$I$26,"---"))) -> --- | AO5: =IF(AND(AW5="---",C5=1640,C5=E5),'Ремень эластичный'!$I$27*2,IF(AND(AW5="---",C5=1640),'Ремень эластичный'!$I$27,IF(AND(AW5="---",E5=1640),'Ремень эластичный'!$I$27,"---"))) -> --- | AP5: =IF(AND(AW5="---",C5=1700,C5=E5),'Ремень эластичный'!$I$28*2,IF(AND(AW5="---",C5=1700),'Ремень эластичный'!$I$28,IF(AND(AW5="---",E5=1700),'Ремень эластичный'!$I$28,"---"))) -> --- | AQ5: =IF(AND(AW5="---",C5=1740,C5=E5),'Ремень эластичный'!$I$29*2,IF(AND(AW5="---",C5=1740),'Ремень эластичный'!$I$29,IF(AND(AW5="---",E5=1740),'Ремень эластичный'!$I$29,"---"))) -> --- | AR5: =IF(AND(AW5="---",C5=1770,C5=E5),'Ремень эластичный'!$I$30*2,IF(AND(AW5="---",C5=1770),'Ремень эластичный'!$I$30,IF(AND(AW5="---",E5=1770),'Ремень эластичный'!$I$30,"---"))) -> --- | AS5: =IF(AND(AW5="---",C5=1800,C5=E5),'Ремень эластичный'!$I$31*2,IF(AND(AW5="---",C5=1800),'Ремень эластичный'!$I$31,IF(AND(AW5="---",E5=1800),'Ремень эластичный'!$I$31,"---"))) -> --- | AT5: =IF(AND(AW5="---",C5=1900,C5=E5),'Ремень эластичный'!$I$33*2,IF(AND(AW5="---",C5=1900),'Ремень эластичный'!$I$33,IF(AND(AW5="---",E5=1900),'Ремень эластичный'!$I$33,"---"))) -> --- | AU5: =IF(AND(AW5="---",C5=1970,C5=E5),'Ремень эластичный'!$I$34*2,IF(AND(AW5="---",C5=1970),'Ремень эластичный'!$I$34,IF(AND(AW5="---",E5=1970),'Ремень эластичный'!$I$34,"---"))) -> --- | AV5: =IF(AND(AW5="---",C5=2000,C5=E5),'Ремень эластичный'!$I$35*2,IF(AND(AW5="---",C5=2000),'Ремень эластичный'!$I$35,IF(AND(AW5="---",E5=2000),'Ремень эластичный'!$I$35,"---"))) -> --- | AW5: 22 | AX5: =IF(D5=460,'Пружина змейка+зацеп'!D11,"---") -> --- | AY5: =IF(D5=520,'Пружина змейка+зацеп'!D11,"---") -> --- | AZ5: =IF(D5=580,'Пружина змейка+зацеп'!D11,"---") -> --- | BA5: =IF(D5=660,'Пружина змейка+зацеп'!D11,"---") -> 11
A6: Аруба | B6: 2ру(1600) | C6: 1570 | D6: 660 | F6: 13 | I6: 2 | J6: 13 | K6: 16 | L6: 15 | P6: =IF(AND(AW6="---",C6=360,C6=E6),'Ремень эластичный'!$I$2*2,IF(AND(AW6="---",C6=360),'Ремень эластичный'!$I$2,IF(AND(AW6="---",E6=360),'Ремень эластичный'!$I$2,"---"))) -> --- | Q6: =IF(AND(AW6="---",C6=660,C6=E6),'Ремень эластичный'!$I$3*2,IF(AND(AW6="---",C6=660),'Ремень эластичный'!$I$3,IF(AND(AW6="---",E6=660),'Ремень эластичный'!$I$3,"---"))) -> --- | R6: =IF(AND(AW6="---",C6=670,C6=E6),'Ремень эластичный'!$I$4*2,IF(AND(AW6="---",C6=670),'Ремень эластичный'!$I$4,IF(AND(AW6="---",E6=670),'Ремень эластичный'!$I$4,"---"))) -> --- | S6: =IF(AND(AW6="---",C6=700,C6=E6),'Ремень эластичный'!$I$5*2,IF(AND(AW6="---",C6=700),'Ремень эластичный'!$I$5,IF(AND(AW6="---",E6=700),'Ремень эластичный'!$I$5,"---"))) -> --- | T6: =IF(AND(AW6="---",C6=760,C6=E6),'Ремень эластичный'!$I$6*2,IF(AND(AW6="---",C6=760),'Ремень эластичный'!$I$6,IF(AND(AW6="---",E6=760),'Ремень эластичный'!$I$6,"---"))) -> --- | U6: =IF(AND(AW6="---",C6=770,C6=E6),'Ремень эластичный'!$I$7*2,IF(AND(AW6="---",C6=770),'Ремень эластичный'!$I$7,IF(AND(AW6="---",E6=770),'Ремень эластичный'!$I$7,"---"))) -> --- | V6: =IF(AND(AW6="---",C6=785,C6=E6),'Ремень эластичный'!$I$8*2,IF(AND(AW6="---",C6=785),'Ремень эластичный'!$I$8,IF(AND(AW6="---",E6=785),'Ремень эластичный'!$I$8,"---"))) -> --- | W6: =IF(AND(AW6="---",C6=800,C6=E6),'Ремень эластичный'!$I$9*2,IF(AND(AW6="---",C6=800),'Ремень эластичный'!$I$9,IF(AND(AW6="---",E6=800),'Ремень эластичный'!$I$9,"---"))) -> --- | X6: =IF(AND(AW6="---",C6=830,C6=E6),'Ремень эластичный'!$I$10*2,IF(AND(AW6="---",C6=830),'Ремень эластичный'!$I$10,IF(AND(AW6="---",E6=830),'Ремень эластичный'!$I$10,"---"))) -> --- | Y6: =IF(AND(AW6="---",C6=885,C6=E6),'Ремень эластичный'!$I$11*2,IF(AND(AW6="---",C6=885),'Ремень эластичный'!$I$11,IF(AND(AW6="---",E6=885),'Ремень эластичный'!$I$11,"---"))) -> --- | Z6: =IF(AND(AW6="---",C6=900,C6=E6),'Ремень эластичный'!$I$12*2,IF(AND(AW6="---",C6=900),'Ремень эластичный'!$I$12,IF(AND(AW6="---",E6=900),'Ремень эластичный'!$I$12,"---"))) -> --- | AA6: =IF(AND(AW6="---",C6=935,C6=E6),'Ремень эластичный'!$I$13*2,IF(AND(AW6="---",C6=935),'Ремень эластичный'!$I$13,IF(AND(AW6="---",E6=935),'Ремень эластичный'!$I$13,"---"))) -> --- | AB6: =IF(AND(AW6="---",C6=985,C6=E6),'Ремень эластичный'!$I$14*2,IF(AND(AW6="---",C6=985),'Ремень эластичный'!$I$14,IF(AND(AW6="---",E6=985),'Ремень эластичный'!$I$14,"---"))) -> --- | AC6: =IF(AND(AW6="---",C6=1000,C6=E6),'Ремень эластичный'!$I$15*2,IF(AND(AW6="---",C6=1000),'Ремень эластичный'!$I$15,IF(AND(AW6="---",E6=1000),'Ремень эластичный'!$I$15,"---"))) -> --- | AD6: =IF(AND(AW6="---",C6=1080,C6=E6),'Ремень эластичный'!$I$16*2,IF(AND(AW6="---",C6=1080),'Ремень эластичный'!$I$16,IF(AND(AW6="---",E6=1080),'Ремень эластичный'!$I$16,"---"))) -> --- | AE6: =IF(AND(AW6="---",C6=1100,C6=E6),'Ремень эластичный'!$I$17*2,IF(AND(AW6="---",C6=1100),'Ремень эластичный'!$I$17,IF(AND(AW6="---",E6=1100),'Ремень эластичный'!$I$17,"---"))) -> --- | AF6: =IF(AND(AW6="---",C6=1185,C6=E6),'Ремень эластичный'!$I$18*2,IF(AND(AW6="---",C6=1185),'Ремень эластичный'!$I$18,IF(AND(AW6="---",E6=1185),'Ремень эластичный'!$I$18,"---"))) -> --- | AG6: =IF(AND(AW6="---",C6=1200,C6=E6),'Ремень эластичный'!$I$19*2,IF(AND(AW6="---",C6=1200),'Ремень эластичный'!$I$19,IF(AND(AW6="---",E6=1200),'Ремень эластичный'!$I$19,"---"))) -> --- | AH6: =IF(AND(AW6="---",C6=1300,C6=E6),'Ремень эластичный'!$I$20*2,IF(AND(AW6="---",C6=1300),'Ремень эластичный'!$I$20,IF(AND(AW6="---",E6=1300),'Ремень эластичный'!$I$20,"---"))) -> --- | AI6: =IF(AND(AW6="---",C6=1400,C6=E6),'Ремень эластичный'!$I$21*2,IF(AND(AW6="---",C6=1400),'Ремень эластичный'!$I$21,IF(AND(AW6="---",E6=1400),'Ремень эластичный'!$I$21,"---"))) -> --- | AJ6: =IF(AND(AW6="---",C6=1460,C6=E6),'Ремень эластичный'!$I$22*2,IF(AND(AW6="---",C6=1460),'Ремень эластичный'!$I$22,IF(AND(AW6="---",E6=1460),'Ремень эластичный'!$I$22,"---"))) -> --- | AK6: =IF(AND(AW6="---",C6=1500,C6=E6),'Ремень эластичный'!$I$23*2,IF(AND(AW6="---",C6=1500),'Ремень эластичный'!$I$23,IF(AND(AW6="---",E6=1500),'Ремень эластичный'!$I$23,"---"))) -> --- | AL6: =IF(AND(AW6="---",C6=1540,C6=E6),'Ремень эластичный'!$I$24*2,IF(AND(AW6="---",C6=1540),'Ремень эластичный'!$I$24,IF(AND(AW6="---",E6=1540),'Ремень эластичный'!$I$24,"---"))) -> --- | AM6: =IF(AND(AW6="---",C6=1570,C6=E6),'Ремень эластичный'!$I$25*2,IF(AND(AW6="---",C6=1570),'Ремень эластичный'!$I$25,IF(AND(AW6="---",E6=1570),'Ремень эластичный'!$I$25,"---"))) -> --- | AN6: =IF(AND(AW6="---",C6=1600,C6=E6),'Ремень эластичный'!$I$26*2,IF(AND(AW6="---",C6=1600),'Ремень эластичный'!$I$26,IF(AND(AW6="---",E6=1600),'Ремень эластичный'!$I$26,"---"))) -> --- | AO6: =IF(AND(AW6="---",C6=1640,C6=E6),'Ремень эластичный'!$I$27*2,IF(AND(AW6="---",C6=1640),'Ремень эластичный'!$I$27,IF(AND(AW6="---",E6=1640),'Ремень эластичный'!$I$27,"---"))) -> --- | AP6: =IF(AND(AW6="---",C6=1700,C6=E6),'Ремень эластичный'!$I$28*2,IF(AND(AW6="---",C6=1700),'Ремень эластичный'!$I$28,IF(AND(AW6="---",E6=1700),'Ремень эластичный'!$I$28,"---"))) -> --- | AQ6: =IF(AND(AW6="---",C6=1740,C6=E6),'Ремень эластичный'!$I$29*2,IF(AND(AW6="---",C6=1740),'Ремень эластичный'!$I$29,IF(AND(AW6="---",E6=1740),'Ремень эластичный'!$I$29,"---"))) -> --- | AR6: =IF(AND(AW6="---",C6=1770,C6=E6),'Ремень эластичный'!$I$30*2,IF(AND(AW6="---",C6=1770),'Ремень эластичный'!$I$30,IF(AND(AW6="---",E6=1770),'Ремень эластичный'!$I$30,"---"))) -> --- | AS6: =IF(AND(AW6="---",C6=1800,C6=E6),'Ремень эластичный'!$I$31*2,IF(AND(AW6="---",C6=1800),'Ремень эластичный'!$I$31,IF(AND(AW6="---",E6=1800),'Ремень эластичный'!$I$31,"---"))) -> --- | AT6: =IF(AND(AW6="---",C6=1900,C6=E6),'Ремень эластичный'!$I$33*2,IF(AND(AW6="---",C6=1900),'Ремень эластичный'!$I$33,IF(AND(AW6="---",E6=1900),'Ремень эластичный'!$I$33,"---"))) -> --- | AU6: =IF(AND(AW6="---",C6=1970,C6=E6),'Ремень эластичный'!$I$34*2,IF(AND(AW6="---",C6=1970),'Ремень эластичный'!$I$34,IF(AND(AW6="---",E6=1970),'Ремень эластичный'!$I$34,"---"))) -> --- | AV6: =IF(AND(AW6="---",C6=2000,C6=E6),'Ремень эластичный'!$I$35*2,IF(AND(AW6="---",C6=2000),'Ремень эластичный'!$I$35,IF(AND(AW6="---",E6=2000),'Ремень эластичный'!$I$35,"---"))) -> --- | AW6: 32 | AX6: =IF(D6=460,'Пружина змейка+зацеп'!D12,"---") -> --- | AY6: =IF(D6=520,'Пружина змейка+зацеп'!D12,"---") -> --- | AZ6: =IF(D6=580,'Пружина змейка+зацеп'!D12,"---") -> --- | BA6: =IF(D6=660,'Пружина змейка+зацеп'!D12,"---") -> 16
A7: Аруба | C7: 1570 | D7: 580 | P7: =IF(AND(AW7="---",C7=360,C7=E7),'Ремень эластичный'!$I$2*2,IF(AND(AW7="---",C7=360),'Ремень эластичный'!$I$2,IF(AND(AW7="---",E7=360),'Ремень эластичный'!$I$2,"---"))) -> --- | Q7: =IF(AND(AW7="---",C7=660,C7=E7),'Ремень эластичный'!$I$3*2,IF(AND(AW7="---",C7=660),'Ремень эластичный'!$I$3,IF(AND(AW7="---",E7=660),'Ремень эластичный'!$I$3,"---"))) -> --- | R7: =IF(AND(AW7="---",C7=670,C7=E7),'Ремень эластичный'!$I$4*2,IF(AND(AW7="---",C7=670),'Ремень эластичный'!$I$4,IF(AND(AW7="---",E7=670),'Ремень эластичный'!$I$4,"---"))) -> --- | S7: =IF(AND(AW7="---",C7=700,C7=E7),'Ремень эластичный'!$I$5*2,IF(AND(AW7="---",C7=700),'Ремень эластичный'!$I$5,IF(AND(AW7="---",E7=700),'Ремень эластичный'!$I$5,"---"))) -> --- | T7: =IF(AND(AW7="---",C7=760,C7=E7),'Ремень эластичный'!$I$6*2,IF(AND(AW7="---",C7=760),'Ремень эластичный'!$I$6,IF(AND(AW7="---",E7=760),'Ремень эластичный'!$I$6,"---"))) -> --- | U7: =IF(AND(AW7="---",C7=770,C7=E7),'Ремень эластичный'!$I$7*2,IF(AND(AW7="---",C7=770),'Ремень эластичный'!$I$7,IF(AND(AW7="---",E7=770),'Ремень эластичный'!$I$7,"---"))) -> --- | V7: =IF(AND(AW7="---",C7=785,C7=E7),'Ремень эластичный'!$I$8*2,IF(AND(AW7="---",C7=785),'Ремень эластичный'!$I$8,IF(AND(AW7="---",E7=785),'Ремень эластичный'!$I$8,"---"))) -> --- | W7: =IF(AND(AW7="---",C7=800,C7=E7),'Ремень эластичный'!$I$9*2,IF(AND(AW7="---",C7=800),'Ремень эластичный'!$I$9,IF(AND(AW7="---",E7=800),'Ремень эластичный'!$I$9,"---"))) -> --- | X7: =IF(AND(AW7="---",C7=830,C7=E7),'Ремень эластичный'!$I$10*2,IF(AND(AW7="---",C7=830),'Ремень эластичный'!$I$10,IF(AND(AW7="---",E7=830),'Ремень эластичный'!$I$10,"---"))) -> --- | Y7: =IF(AND(AW7="---",C7=885,C7=E7),'Ремень эластичный'!$I$11*2,IF(AND(AW7="---",C7=885),'Ремень эластичный'!$I$11,IF(AND(AW7="---",E7=885),'Ремень эластичный'!$I$11,"---"))) -> --- | Z7: =IF(AND(AW7="---",C7=900,C7=E7),'Ремень эластичный'!$I$12*2,IF(AND(AW7="---",C7=900),'Ремень эластичный'!$I$12,IF(AND(AW7="---",E7=900),'Ремень эластичный'!$I$12,"---"))) -> --- | AA7: =IF(AND(AW7="---",C7=935,C7=E7),'Ремень эластичный'!$I$13*2,IF(AND(AW7="---",C7=935),'Ремень эластичный'!$I$13,IF(AND(AW7="---",E7=935),'Ремень эластичный'!$I$13,"---"))) -> --- | AB7: =IF(AND(AW7="---",C7=985,C7=E7),'Ремень эластичный'!$I$14*2,IF(AND(AW7="---",C7=985),'Ремень эластичный'!$I$14,IF(AND(AW7="---",E7=985),'Ремень эластичный'!$I$14,"---"))) -> --- | AC7: =IF(AND(AW7="---",C7=1000,C7=E7),'Ремень эластичный'!$I$15*2,IF(AND(AW7="---",C7=1000),'Ремень эластичный'!$I$15,IF(AND(AW7="---",E7=1000),'Ремень эластичный'!$I$15,"---"))) -> --- | AD7: =IF(AND(AW7="---",C7=1080,C7=E7),'Ремень эластичный'!$I$16*2,IF(AND(AW7="---",C7=1080),'Ремень эластичный'!$I$16,IF(AND(AW7="---",E7=1080),'Ремень эластичный'!$I$16,"---"))) -> --- | AE7: =IF(AND(AW7="---",C7=1100,C7=E7),'Ремень эластичный'!$I$17*2,IF(AND(AW7="---",C7=1100),'Ремень эластичный'!$I$17,IF(AND(AW7="---",E7=1100),'Ремень эластичный'!$I$17,"---"))) -> --- | AF7: =IF(AND(AW7="---",C7=1185,C7=E7),'Ремень эластичный'!$I$18*2,IF(AND(AW7="---",C7=1185),'Ремень эластичный'!$I$18,IF(AND(AW7="---",E7=1185),'Ремень эластичный'!$I$18,"---"))) -> --- | AG7: =IF(AND(AW7="---",C7=1200,C7=E7),'Ремень эластичный'!$I$19*2,IF(AND(AW7="---",C7=1200),'Ремень эластичный'!$I$19,IF(AND(AW7="---",E7=1200),'Ремень эластичный'!$I$19,"---"))) -> --- | AH7: =IF(AND(AW7="---",C7=1300,C7=E7),'Ремень эластичный'!$I$20*2,IF(AND(AW7="---",C7=1300),'Ремень эластичный'!$I$20,IF(AND(AW7="---",E7=1300),'Ремень эластичный'!$I$20,"---"))) -> --- | AI7: =IF(AND(AW7="---",C7=1400,C7=E7),'Ремень эластичный'!$I$21*2,IF(AND(AW7="---",C7=1400),'Ремень эластичный'!$I$21,IF(AND(AW7="---",E7=1400),'Ремень эластичный'!$I$21,"---"))) -> --- | AJ7: =IF(AND(AW7="---",C7=1460,C7=E7),'Ремень эластичный'!$I$22*2,IF(AND(AW7="---",C7=1460),'Ремень эластичный'!$I$22,IF(AND(AW7="---",E7=1460),'Ремень эластичный'!$I$22,"---"))) -> --- | AK7: =IF(AND(AW7="---",C7=1500,C7=E7),'Ремень эластичный'!$I$23*2,IF(AND(AW7="---",C7=1500),'Ремень эластичный'!$I$23,IF(AND(AW7="---",E7=1500),'Ремень эластичный'!$I$23,"---"))) -> --- | AL7: =IF(AND(AW7="---",C7=1540,C7=E7),'Ремень эластичный'!$I$24*2,IF(AND(AW7="---",C7=1540),'Ремень эластичный'!$I$24,IF(AND(AW7="---",E7=1540),'Ремень эластичный'!$I$24,"---"))) -> --- | AM7: =IF(AND(AW7="---",C7=1570,C7=E7),'Ремень эластичный'!$I$25*2,IF(AND(AW7="---",C7=1570),'Ремень эластичный'!$I$25,IF(AND(AW7="---",E7=1570),'Ремень эластичный'!$I$25,"---"))) -> --- | AN7: =IF(AND(AW7="---",C7=1600,C7=E7),'Ремень эластичный'!$I$26*2,IF(AND(AW7="---",C7=1600),'Ремень эластичный'!$I$26,IF(AND(AW7="---",E7=1600),'Ремень эластичный'!$I$26,"---"))) -> --- | AO7: =IF(AND(AW7="---",C7=1640,C7=E7),'Ремень эластичный'!$I$27*2,IF(AND(AW7="---",C7=1640),'Ремень эластичный'!$I$27,IF(AND(AW7="---",E7=1640),'Ремень эластичный'!$I$27,"---"))) -> --- | AP7: =IF(AND(AW7="---",C7=1700,C7=E7),'Ремень эластичный'!$I$28*2,IF(AND(AW7="---",C7=1700),'Ремень эластичный'!$I$28,IF(AND(AW7="---",E7=1700),'Ремень эластичный'!$I$28,"---"))) -> --- | AQ7: =IF(AND(AW7="---",C7=1740,C7=E7),'Ремень эластичный'!$I$29*2,IF(AND(AW7="---",C7=1740),'Ремень эластичный'!$I$29,IF(AND(AW7="---",E7=1740),'Ремень эластичный'!$I$29,"---"))) -> --- | AR7: =IF(AND(AW7="---",C7=1770,C7=E7),'Ремень эластичный'!$I$30*2,IF(AND(AW7="---",C7=1770),'Ремень эластичный'!$I$30,IF(AND(AW7="---",E7=1770),'Ремень эластичный'!$I$30,"---"))) -> --- | AS7: =IF(AND(AW7="---",C7=1800,C7=E7),'Ремень эластичный'!$I$31*2,IF(AND(AW7="---",C7=1800),'Ремень эластичный'!$I$31,IF(AND(AW7="---",E7=1800),'Ремень эластичный'!$I$31,"---"))) -> --- | AT7: =IF(AND(AW7="---",C7=1900,C7=E7),'Ремень эластичный'!$I$33*2,IF(AND(AW7="---",C7=1900),'Ремень эластичный'!$I$33,IF(AND(AW7="---",E7=1900),'Ремень эластичный'!$I$33,"---"))) -> --- | AU7: =IF(AND(AW7="---",C7=1970,C7=E7),'Ремень эластичный'!$I$34*2,IF(AND(AW7="---",C7=1970),'Ремень эластичный'!$I$34,IF(AND(AW7="---",E7=1970),'Ремень эластичный'!$I$34,"---"))) -> --- | AV7: =IF(AND(AW7="---",C7=2000,C7=E7),'Ремень эластичный'!$I$35*2,IF(AND(AW7="---",C7=2000),'Ремень эластичный'!$I$35,IF(AND(AW7="---",E7=2000),'Ремень эластичный'!$I$35,"---"))) -> --- | AW7: 32 | AX7: =IF(D7=460,'Пружина змейка+зацеп'!D13,"---") -> --- | AY7: =IF(D7=520,'Пружина змейка+зацеп'!D13,"---") -> --- | AZ7: =IF(D7=580,'Пружина змейка+зацеп'!D13,"---") -> 16 | BA7: =IF(D7=660,'Пружина змейка+зацеп'!D13,"---") -> ---

Sheet Модуль
A1: Модули
A2: 3ру
A3: 3руL
A4: 3рул(п)
A5: 3рул(п)L
A6: 3рун
A7: 3рунL
A8: 3руК
A9: 3р
A10: 3у
A11: 3ул(п)
A12: 3ун
A13: 3
A14: 2ру(1600)
A15: 2ру(1670)
A16: 2ру(1800)
A17: 2ру(1870)
A18: 2ру(1970)
A19: 2ру(2000)
A20: 2руL
A21: 2рул(п)
A22: 2рул(п)L
A23: 2рун
A24: 2рун
A25: 2руК
A26: 2р
A27: 2у(1670)
A28: 2ул(п)
A29: 2ун
A30: 2
A31: 1ру(800)
A32: 1ру(900)
A33: 1ру(1000)
A34: 1руL
A35: 1рул(п)
A36: 1рул(п)L
A37: 1рун
A38: 1рунL
A39: 1р
A40: 1у(800)
A41: 1у(835)
A42: 1у(900)
A43: 1у(935)
A44: 1у(1000)
A45: 1у(1200)
A46: 1ул(п)(985)
A47: 1ул(п)
A48: 1ул(п)
A49: 1ул(п)
A50: 1ун
A51: 1
A52: 1к
A53: 1уб
A54: 1убл(п)
A55: 1уу
A56: 1уул(п)
A57: У.0
A58: У
A59: Ум
A60: Уб
A61: Ун
A62: Ул(п)н
A63: 1ркм
A64: 1ркммЭ
A65: Оу(800)
A66: Оу(900)
A67: Оу(1000)
A68: Оул(п)
A69: Оубл(п)(800)
A70: Оубл(п)(900)
A71: Оубл(п)(1000)
A72: Оум
A73: Бл(п)(100)
A74: Бл(п)(200)
A75: Бл(п)(300)
A76: Бл(п)
A77: Бл(п)О
A78: Бл(п)у
A79: Бл(п)н
A80: Бл(п)нО
A81: Бл(п)ст
A82: Бл(п)вп
A83: Нл(п)
A84: Бл(п)с
A85: Зл(п)
A86: Всбар
A87: Вст
A88: Ст
A89: К(800х400)
A90: К(800х800)
A91: К(1000х1000)
A92: К(800х400)
A93: К(800х400)
A94: К(800х400)
A95: К(800х400)
A96: К(800х400)
A97: К(800х400)
A98: К(800х400)
A99: К(800х400)
A101: К2
A102: К3
A103: Н1л(п)

Sheet Ремень эластичный
A1: Наименование | E1: Габарит | G1: Расчетное | H1: Длина ремня в габарит мм. | I1: Количество
A2: ="Ремень эластичный "& H2 &"мм" -> Ремень эластичный 300мм | E2: 360 | G2: =IF(E2<=1000,E2/1.2,E2/1.3) -> 300 | H2: =_xlfn.CEILING.MATH(G2,10) -> 300 | I2: =_xlfn.CEILING.MATH(J2,1) -> 4 | J2: =E2/115 -> 3.130434783
A3: Ремень эластичный 550мм | E3: 660 | G3: =IF(E3<=1000,E3/1.2,E3/1.3) -> 550 | H3: 550 | I3: =_xlfn.CEILING.MATH(J3,1) -> 6 | J3: =E3/115 -> 5.739130435
A4: ="Ремень эластичный "& H4 &"мм" -> Ремень эластичный 560мм | E4: 670 | G4: =IF(E4<=1000,E4/1.2,E4/1.3) -> 558.3333333 | H4: 560 | I4: 6 | J4: 5.826086957
A5: Ремень эластичный 590мм | E5: 700 | G5: 583.3333333 | H5: 590 | I5: 7 | J5: 6.086956522
A6: Ремень эластичный 640мм | E6: 760 | G6: 633.3333333 | H6: 640 | I6: 7 | J6: 6.608695652
A7: Ремень эластичный 650мм | E7: 770 | G7: 641.6666667 | H7: 650 | I7: 7 | J7: 6.695652174
A8: Ремень эластичный 660мм | E8: 785 | G8: 654.1666667 | H8: 660 | I8: 7 | J8: 6.826086957
A9: Ремень эластичный 670мм | E9: 800 | G9: 666.6666667 | H9: 670 | I9: 7 | J9: 6.956521739
A10: Ремень эластичный 700мм | E10: 830 | G10: 691.6666667 | H10: 700 | I10: 8 | J10: 7.217391304
A11: Ремень эластичный 740мм | E11: 885 | G11: 737.5 | H11: 740 | I11: 8 | J11: 7.695652174
A12: Ремень эластичный 750мм | E12: 900 | G12: 750 | H12: 750 | I12: 8 | J12: 7.826086957
A13: Ремень эластичный 780мм | E13: 935 | G13: 779.1666667 | H13: 780 | I13: 9 | J13: 8.130434783
A14: Ремень эластичный 830мм | E14: 985 | G14: 820.8333333 | H14: 830 | I14: 9 | J14: 8.565217391
A15: Ремень эластичный 840мм | E15: 1000 | G15: 833.3333333 | H15: 840 | I15: 9 | J15: 8.695652174
A16: ="Ремень эластичный "& H16 &"мм" -> Ремень эластичный 840мм | E16: 1080 | G16: =IF(E16<=1000,E16/1.2,E16/1.3) -> 830.7692308 | H16: 840 | I16: 10 | J16: 9.391304348
A17: Ремень эластичный 850мм | E17: 1100 | G17: 846.1538462 | H17: 850 | I17: 10 | J17: 9.565217391
A18: Ремень эластичный 920мм | E18: 1185 | G18: 911.5384615 | H18: 920 | I18: 11 | J18: 10.30434783
A19: Ремень эластичный 930мм | E19: 1200 | G19: 923.0769231 | H19: 930 | I19: 11 | J19: 10.43478261
A20: Ремень эластичный 1000мм | E20: 1300 | G20: 1000 | H20: 1000 | I20: 12 | J20: 11.30434783
A21: Ремень эластичный 1080мм | E21: 1400 | G21: 1076.923077 | H21: 1080 | I21: 13 | J21: 12.17391304
A22: Ремень эластичный 1130мм | E22: 1460 | G22: 1123.076923 | H22: 1130 | I22: 13 | J22: 12.69565217
A23: Ремень эластичный 1160мм | E23: 1500 | G23: 1153.846154 | H23: 1160 | I23: 14 | J23: 13.04347826
A24: Ремень эластичный 1190мм | E24: 1540 | G24: 1184.615385 | H24: 1190 | I24: 14 | J24: 13.39130435
A25: Ремень эластичный 1210мм | E25: 1570 | G25: 1207.692308 | H25: 1210 | I25: 14 | J25: 13.65217391
A26: Ремень эластичный 1240мм | E26: 1600 | G26: 1230.769231 | H26: 1240 | I26: 14 | J26: 13.91304348
A27: Ремень эластичный 1270мм | E27: 1640 | G27: 1261.538462 | H27: 1270 | I27: 15 | J27: 14.26086957
A28: Ремень эластичный 1310мм | E28: 1700 | G28: 1307.692308 | H28: 1310 | I28: 15 | J28: 14.7826087
A29: Ремень эластичный 1340мм | E29: 1740 | G29: 1338.461538 | H29: 1340 | I29: 16 | J29: 15.13043478
A30: Ремень эластичный 1370мм | E30: 1770 | G30: 1361.538462 | H30: 1370 | I30: 16 | J30: 15.39130435
A31: Ремень эластичный 1390мм | E31: 1800 | G31: 1384.615385 | H31: 1390 | I31: 16 | J31: 15.65217391
A32: Ремень эластичный 1420мм | E32: 1840 | G32: 1415.384615 | H32: 1420 | I32: 16 | J32: 16
A33: Ремень эластичный 1470мм | E33: 1900 | G33: 1461.538462 | H33: 1470 | I33: 17 | J33: 16.52173913
A34: Ремень эластичный 1520мм | E34: 1970 | G34: 1515.384615 | H34: 1520 | I34: 18 | J34: 17.13043478
A35: Ремень эластичный 1540мм | E35: 2000 | G35: 1538.461538 | H35: 1540 | I35: 18 | J35: 17.39130435
A36: Ремень эластичный 0мм | G36: 0 | H36: 0 | I36: 0 | J36: 0
A37: Ремень эластичный 0мм | G37: 0 | H37: 0 | I37: 0 | J37: 0

Sheet Пружина змейка+зацеп
B2: Шаг мм | C2: Габарит | D2: шт
A3: ="Пружина - змейка "& C3 &"мм" -> Пружина - змейка 460мм | C3: 460
A4: ="Пружина - змейка "& C4 &"мм" -> Пружина - змейка 520мм | C4: 520
A5: ="Пружина - змейка "& C5 &"мм" -> Пружина - змейка 580мм | C5: 580
A6: ="Пружина - змейка "& C6 &"мм" -> Пружина - змейка 660мм | C6: 660
A8: Зацеп для пружины змейки | D8: =ROUNDDOWN(E8,0) -> 6 | E8: =(('ВПИ ДОЦ'!C2)-200)/85 -> 6.882352941
D9: =ROUNDDOWN(E9,0) -> 8 | E9: =(('ВПИ ДОЦ'!C3)-200)/85 -> 8.058823529
D10: 9 | E10: =(('ВПИ ДОЦ'!C4)-200)/85 -> 9.235294118
D11: 11 | E11: =(('ВПИ ДОЦ'!C5)-200)/85 -> 11.58823529
D12: 16 | E12: =(('ВПИ ДОЦ'!C6)-200)/85 -> 16.11764706
D13: 16 | E13: =(('ВПИ ДОЦ'!C7)-200)/85 -> 16.11764706
E14: =(('ВПИ ДОЦ'!#REF!)-200)/85 -> 
E15: =(('ВПИ ДОЦ'!#REF!)-200)/85 -> 
E16: =(('ВПИ ДОЦ'!#REF!)-200)/85 -> 
E17: =(('ВПИ ДОЦ'!#REF!)-200)/85 -> 
E18: =(('ВПИ ДОЦ'!#REF!)-200)/85 -> 
E19: =(('ВПИ ДОЦ'!#REF!)-200)/85 -> 
E20: =(('ВПИ ДОЦ'!#REF!)-200)/85 -> 
E21: =(('ВПИ ДОЦ'!#REF!)-200)/85 -> 
E22: =(('ВПИ ДОЦ'!#REF!)-200)/85 -> 
E23: =(('ВПИ ДОЦ'!#REF!)-200)/85 -> 
E24: =(('ВПИ ДОЦ'!#REF!)-200)/85 -> 
E25: =(('ВПИ ДОЦ'!#REF!)-200)/85 -> 
E26: =(('ВПИ ДОЦ'!#REF!)-200)/85 -> 
E27: =(('ВПИ ДОЦ'!#REF!)-200)/85 -> 
E28: =(('ВПИ ДОЦ'!#REF!)-200)/85 -> 
E29: =(('ВПИ ДОЦ'!#REF!)-200)/85 -> 
E30: =(('ВПИ ДОЦ'!#REF!)-200)/85 -> 
E31: =(('ВПИ ДОЦ'!#REF!)-200)/85 -> 
E32: =(('ВПИ ДОЦ'!#REF!)-200)/85 -> 
E33: =(('ВПИ ДОЦ'!#REF!)-200)/85 -> 
E34: =(('ВПИ ДОЦ'!#REF!)-200)/85 -> 
E35: =(('ВПИ ДОЦ'!#REF!)-200)/85 -> 
E36: =(('ВПИ ДОЦ'!#REF!)-200)/85 -> 
E37: =(('ВПИ ДОЦ'!#REF!)-200)/85 -> 
E38: =(('ВПИ ДОЦ'!#REF!)-200)/85 -> 
E39: =(('ВПИ ДОЦ'!#REF!)-200)/85 -> 
E40: =(('ВПИ ДОЦ'!#REF!)-200)/85 -> 
E41: =(('ВПИ ДОЦ'!#REF!)-200)/85 -> 
E42: =(('ВПИ ДОЦ'!#REF!)-200)/85 -> 
E43: =(('ВПИ ДОЦ'!#REF!)-200)/85 -> 
E44: =(('ВПИ ДОЦ'!#REF!)-200)/85 -> 
E45: =(('ВПИ ДОЦ'!#REF!)-200)/85 -> 
E46: =(('ВПИ ДОЦ'!#REF!)-200)/85 -> 
E47: =(('ВПИ ДОЦ'!#REF!)-200)/85 -> 
E48: =(('ВПИ ДОЦ'!#REF!)-200)/85 -> 
E49: =(('ВПИ ДОЦ'!#REF!)-200)/85 -> 
E50: =(('ВПИ ДОЦ'!#REF!)-200)/85 -> 
E51: =(('ВПИ ДОЦ'!#REF!)-200)/85 -> 
E52: =(('ВПИ ДОЦ'!#REF!)-200)/85 -> 
E53: =(('ВПИ ДОЦ'!#REF!)-200)/85 -> 
E54: =(('ВПИ ДОЦ'!#REF!)-200)/85 -> 
E55: =(('ВПИ ДОЦ'!#REF!)-200)/85 -> 
E56: =(('ВПИ ДОЦ'!#REF!)-200)/85 -> 
E57: =(('ВПИ ДОЦ'!#REF!)-200)/85 -> 
E58: =(('ВПИ ДОЦ'!#REF!)-200)/85 -> 
E59: =(('ВПИ ДОЦ'!#REF!)-200)/85 -> 
E60: =(('ВПИ ДОЦ'!#REF!)-200)/85 -> 
E61: =(('ВПИ ДОЦ'!#REF!)-200)/85 -> 
E62: =(('ВПИ ДОЦ'!#REF!)-200)/85 -> 
E63: =(('ВПИ ДОЦ'!#REF!)-200)/85 -> 
E64: =(('ВПИ ДОЦ'!#REF!)-200)/85 -> 
E65: =(('ВПИ ДОЦ'!#REF!)-200)/85 -> 
E66: =(('ВПИ ДОЦ'!#REF!)-200)/85 -> 
E67: =(('ВПИ ДОЦ'!#REF!)-200)/85 -> 
E68: =(('ВПИ ДОЦ'!#REF!)-200)/85 -> 
E69: =(('ВПИ ДОЦ'!#REF!)-200)/85 -> 
E70: =(('ВПИ ДОЦ'!#REF!)-200)/85 -> 
E71: =(('ВПИ ДОЦ'!#REF!)-200)/85 -> 
E72: =(('ВПИ ДОЦ'!#REF!)-200)/85 -> 
D73: =ROUNDDOWN(E73,0) ->  | E73: =(('ВПИ ДОЦ'!#REF!)-200)/85 -> 
E74: =(('ВПИ ДОЦ'!#REF!)-200)/85 -> 
E75: =(('ВПИ ДОЦ'!#REF!)-200)/85 -> 
E76: =(('ВПИ ДОЦ'!#REF!)-200)/85 -> 
E77: =(('ВПИ ДОЦ'!#REF!)-200)/85 -> 
E78: =(('ВПИ ДОЦ'!#REF!)-200)/85 -> 
E79: =(('ВПИ ДОЦ'!#REF!)-200)/85 -> 
E80: =(('ВПИ ДОЦ'!#REF!)-200)/85 -> 
E81: =(('ВПИ ДОЦ'!#REF!)-200)/85 -> 
E82: =(('ВПИ ДОЦ'!#REF!)-200)/85 -> 
E83: =(('ВПИ ДОЦ'!#REF!)-200)/85 -> 
E84: =(('ВПИ ДОЦ'!#REF!)-200)/85 -> 
E85: =(('ВПИ ДОЦ'!#REF!)-200)/85 -> 
E86: =(('ВПИ ДОЦ'!#REF!)-200)/85 -> 
E87: =(('ВПИ ДОЦ'!#REF!)-200)/85 -> 
E88: =(('ВПИ ДОЦ'!#REF!)-200)/85 -> 
E89: =(('ВПИ ДОЦ'!#REF!)-200)/85 -> 
E90: =(('ВПИ ДОЦ'!#REF!)-200)/85 -> 
E91: =(('ВПИ ДОЦ'!#REF!)-200)/85 -> 
E92: =(('ВПИ ДОЦ'!#REF!)-200)/85 -> 
E93: =(('ВПИ ДОЦ'!#REF!)-200)/85 -> 
E94: =(('ВПИ ДОЦ'!#REF!)-200)/85 -> 
E95: =(('ВПИ ДОЦ'!#REF!)-200)/85 -> 
E96: =(('ВПИ ДОЦ'!#REF!)-200)/85 -> 
E97: =(('ВПИ ДОЦ'!#REF!)-200)/85 -> 
E98: =(('ВПИ ДОЦ'!#REF!)-200)/85 -> 
E99: =(('ВПИ ДОЦ'!#REF!)-200)/85 -> 
E100: =(('ВПИ ДОЦ'!#REF!)-200)/85 -> 
E101: =(('ВПИ ДОЦ'!#REF!)-200)/85 -> 
E102: =(('ВПИ ДОЦ'!#REF!)-200)/85 -> 
E103: =(('ВПИ ДОЦ'!#REF!)-200)/85 -> 
E104: =(('ВПИ ДОЦ'!#REF!)-200)/85 -> 
E105: =(('ВПИ ДОЦ'!#REF!)-200)/85 -> 
E106: =(('ВПИ ДОЦ'!#REF!)-200)/85 -> 
E107: =(('ВПИ ДОЦ'!#REF!)-200)/85 -> 
E108: =(('ВПИ ДОЦ'!#REF!)-200)/85 -> 
E109: =(('ВПИ ДОЦ'!#REF!)-200)/85 -> 
E110: =(('ВПИ ДОЦ'!#REF!)-200)/85 -> 
E111: =(('ВПИ ДОЦ'!#REF!)-200)/85 -> 
E112: =(('ВПИ ДОЦ'!#REF!)-200)/85 -> 
E113: =(('ВПИ ДОЦ'!#REF!)-200)/85 -> 
E114: =(('ВПИ ДОЦ'!#REF!)-200)/85 -> 
E115: =(('ВПИ ДОЦ'!#REF!)-200)/85 -> 
E116: =(('ВПИ ДОЦ'!#REF!)-200)/85 -> 
E117: =(('ВПИ ДОЦ'!#REF!)-200)/85 -> 
E118: =(('ВПИ ДОЦ'!#REF!)-200)/85 -> 
E119: =(('ВПИ ДОЦ'!#REF!)-200)/85 -> 
E120: =(('ВПИ ДОЦ'!#REF!)-200)/85 -> 
E121: =(('ВПИ ДОЦ'!#REF!)-200)/85 -> 
E122: =(('ВПИ ДОЦ'!#REF!)-200)/85 -> 
E123: =(('ВПИ ДОЦ'!#REF!)-200)/85 -> 
E124: =(('ВПИ ДОЦ'!#REF!)-200)/85 -> 
E125: =(('ВПИ ДОЦ'!#REF!)-200)/85 -> 
E126: =(('ВПИ ДОЦ'!#REF!)-200)/85 -> 
E127: =(('ВПИ ДОЦ'!#REF!)-200)/85 -> 
E128: =(('ВПИ ДОЦ'!#REF!)-200)/85 -> 
E129: =(('ВПИ ДОЦ'!#REF!)-200)/85 -> 
E130: =(('ВПИ ДОЦ'!#REF!)-200)/85 -> 
E131: =(('ВПИ ДОЦ'!#REF!)-200)/85 -> 
E132: =(('ВПИ ДОЦ'!#REF!)-200)/85 -> 
E133: =(('ВПИ ДОЦ'!#REF!)-200)/85 -> 
E134: =(('ВПИ ДОЦ'!#REF!)-200)/85 -> 
E135: =(('ВПИ ДОЦ'!#REF!)-200)/85 -> 
E136: =(('ВПИ ДОЦ'!#REF!)-200)/85 -> 
D137: =ROUNDDOWN(E137,0) ->  | E137: =(('ВПИ ДОЦ'!#REF!)-200)/85 -> 
E138: =(('ВПИ ДОЦ'!#REF!)-200)/85 -> 
E139: =(('ВПИ ДОЦ'!#REF!)-200)/85 -> 
E140: =(('ВПИ ДОЦ'!#REF!)-200)/85 -> 
E141: =(('ВПИ ДОЦ'!#REF!)-200)/85 -> 
E142: =(('ВПИ ДОЦ'!#REF!)-200)/85 -> 
E143: =(('ВПИ ДОЦ'!#REF!)-200)/85 -> 
E144: =(('ВПИ ДОЦ'!#REF!)-200)/85 -> 
E145: =(('ВПИ ДОЦ'!#REF!)-200)/85 -> 
E146: =(('ВПИ ДОЦ'!#REF!)-200)/85 -> 
E147: =(('ВПИ ДОЦ'!#REF!)-200)/85 -> 
E148: =(('ВПИ ДОЦ'!#REF!)-200)/85 -> 
E149: =(('ВПИ ДОЦ'!#REF!)-200)/85 -> 
E150: =(('ВПИ ДОЦ'!#REF!)-200)/85 -> 
E151: =(('ВПИ ДОЦ'!#REF!)-200)/85 -> 
E152: =(('ВПИ ДОЦ'!#REF!)-200)/85 -> 
E153: =(('ВПИ ДОЦ'!#REF!)-200)/85 -> 
E154: =(('ВПИ ДОЦ'!#REF!)-200)/85 -> 
E155: =(('ВПИ ДОЦ'!#REF!)-200)/85 -> 
E156: =(('ВПИ ДОЦ'!#REF!)-200)/85 -> 
E157: =(('ВПИ ДОЦ'!#REF!)-200)/85 -> 
E158: =(('ВПИ ДОЦ'!#REF!)-200)/85 -> 
E159: =(('ВПИ ДОЦ'!#REF!)-200)/85 -> 
E160: =(('ВПИ ДОЦ'!#REF!)-200)/85 -> 
E161: =(('ВПИ ДОЦ'!#REF!)-200)/85 -> 
E162: =(('ВПИ ДОЦ'!#REF!)-200)/85 -> 
E163: =(('ВПИ ДОЦ'!#REF!)-200)/85 -> 
E164: =(('ВПИ ДОЦ'!#REF!)-200)/85 -> 
E165: =(('ВПИ ДОЦ'!#REF!)-200)/85 -> 
E166: =(('ВПИ ДОЦ'!#REF!)-200)/85 -> 
E167: =(('ВПИ ДОЦ'!#REF!)-200)/85 -> 
E168: =(('ВПИ ДОЦ'!#REF!)-200)/85 -> 
E169: =(('ВПИ ДОЦ'!#REF!)-200)/85 -> 
E170: =(('ВПИ ДОЦ'!#REF!)-200)/85 -> 
E171: =(('ВПИ ДОЦ'!#REF!)-200)/85 -> 
E172: =(('ВПИ ДОЦ'!#REF!)-200)/85 -> 
E173: =(('ВПИ ДОЦ'!#REF!)-200)/85 -> 
E174: =(('ВПИ ДОЦ'!#REF!)-200)/85 -> 
E175: =(('ВПИ ДОЦ'!#REF!)-200)/85 -> 
E176: =(('ВПИ ДОЦ'!#REF!)-200)/85 -> 
E177: =(('ВПИ ДОЦ'!#REF!)-200)/85 -> 
E178: =(('ВПИ ДОЦ'!#REF!)-200)/85 -> 
E179: =(('ВПИ ДОЦ'!#REF!)-200)/85 -> 
E180: =(('ВПИ ДОЦ'!#REF!)-200)/85 -> 
E181: =(('ВПИ ДОЦ'!#REF!)-200)/85 -> 
E182: =(('ВПИ ДОЦ'!#REF!)-200)/85 -> 

Sheet Лист3
A1: Глубина сиденья
A2: 460
A3: 520
A4: 580
A5: 660

Sheet Лист4

Sheet Лист5

Sheet Лист6

Sheet Лист7

Sheet Лист8

Sheet Лист9
